fUSD/lending_fUSD_20250826
["ID","MTS","AMOUNT","RATE_DAILY","PERIOD"]
[381483708,1756230726531,-482.83,0.00028219,5]
[381483709,1756230726541,-400.0,0.00028219,5]
[381483710,1756230726550,-400.0,0.00028219,5]
[381483711,1756230726560,-490.23,0.00028219,5]
[381483712,1756230726570,-400.0,0.00028219,5]
[381483713,1756230726579,-445.31,0.00028219,5]
[381483714,1756230726588,-400.0,0.00028219,5]
[381483715,1756230726597,-1341.96,0.00028219,5]
[381483716,1756230726606,-400.0,0.00028219,5]
[381483717,1756230726616,-844.87,0.00028219,5]
[381483718,1756230726625,-613.14,0.00028219,5]
[381483719,1756230726634,-400.0,0.00028219,5]
[381483720,1756230726643,-400.0,0.00028219,5]
[381483721,1756230726652,-476.35719075,0.00028219,5]
[381483722,1756230726666,-328.04,0.00028219,5]
[381483723,1756230726675,-400.0,0.00028219,5]
[381483724,1756230726684,-746.97,0.00028219,5]
[381483725,1756230726694,-526.43,0.00028219,5]
[381483726,1756230726705,-1160.1,0.00028219,5]
[381483727,1756230726714,-400.0,0.00028219,5]
[381483728,1756230726723,-400.0,0.00028219,5]
[381483729,1756230726734,-336.32742081,0.00028219,5]
[381483730,1756230726745,-400.0,0.00028219,5]
[381483731,1756230726754,-807.88,0.00028219,5]
[381483732,1756230726764,-1586.91,0.00028219,5]
[381483733,1756230726773,-361.19236621,0.00028219,5]
[381483734,1756230726782,-400.0,0.00028219,5]
[381483735,1756230726791,-1509.82,0.00028219,5]
[381483736,1756230726800,-642.17,0.00028219,5]
[381483737,1756230726809,-400.0,0.00028219,5]
[381483738,1756230726818,-721.04,0.00028219,5]
[381483739,1756230726827,-507.72,0.00028219,5]
[381483740,1756230726836,-400.0,0.00028219,5]
[381483741,1756230726845,-682.86,0.00028219,5]
[381483742,1756230726854,-400.0,0.00028219,5]
[381483743,1756230726863,-400.0,0.00028219,5]
[381483744,1756230726873,-400.0,0.00028219,5]
[381483745,1756230726882,-793.12,0.00028219,5]
[381483746,1756230726891,-507.45,0.00028219,5]
[381483747,1756230726900,-670.75,0.00028219,5]
[381483748,1756230726909,-916.76,0.00028219,5]
[381483749,1756230726918,-722.78,0.00028219,5]
[381483750,1756230726927,-401.09346647,0.00028219,5]
[381483751,1756230726936,-1421.41,0.00028219,5]
[381483752,1756230726945,-685.96,0.00028219,5]
[381483753,1756230726954,-164.5553901,0.00028219,5]
[381483754,1756230726963,-1219.97,0.00028219,5]
[381483755,1756230726972,-400.0,0.00028219,5]
[381483756,1756230726983,-1393.79,0.00028219,5]
[381483757,1756230726992,-944.91,0.00028219,5]
[381483758,1756230727001,-400.0,0.00028219,5]
[381483759,1756230727010,-400.0,0.00028219,5]
[381483760,1756230727020,-616.04,0.00028219,5]
[381483761,1756230727032,-400.0,0.00028219,5]
[381483762,1756230727041,-400.0,0.00028219,5]
[381483763,1756230727050,-400.0,0.00028219,5]
[381483764,1756230727060,-400.0,0.00028219,5]
[381483765,1756230727070,-400.0,0.00028219,5]
[381483766,1756230727080,-744.71,0.00028219,5]
[381483767,1756230727089,-400.0,0.00028219,5]
[381483768,1756230727098,-683.79,0.00028219,5]
[381483769,1756230727108,-394.05847009,0.00028219,5]
[381483770,1756230727117,-496.42,0.00028219,5]
[381483771,1756230727126,-400.0,0.00028219,5]
[381483772,1756230727135,-400.0,0.00028219,5]
[381483773,1756230727145,-1520.2,0.00028219,5]
[381483774,1756230727154,-870.39,0.00028219,5]
[381483775,1756230727163,-759.54,0.00028219,5]
[381483776,1756230727173,-579.76,0.00028219,5]
[381483777,1756230727182,-2000.0,0.00028219,30]
[381483778,1756230727191,-1483.54,0.00028219,5]
[381483779,1756230727200,-513.44,0.00028219,5]
[381483780,1756230727209,-400.0,0.00028219,5]
[381483781,1756230727219,-400.0,0.00028219,5]
[381483782,1756230727229,-1173.63,0.00028219,5]
[381483783,1756230727238,-400.0,0.00028219,5]
[381483784,1756230727248,-646.83,0.00028219,5]
[381483785,1756230727257,-781.98,0.00028219,5]
[381483786,1756230727266,-400.0,0.00028219,5]
[381483787,1756230727275,-483.54,0.00028219,5]
[381483788,1756230727285,-400.0,0.00028219,5]
[381483789,1756230727294,-465.8,0.00028219,5]
[381483790,1756230727304,-889.4,0.00028219,5]
[381483791,1756230727315,-779.46,0.00028219,5]
[381483792,1756230727324,-339.30801997,0.00028219,5]
[381483793,1756230727333,-511.6,0.00028219,5]
[381483794,1756230727342,-400.0,0.00028219,5]
[381483795,1756230727351,-473.06,0.00028219,5]
[381483796,1756230727361,-491.1,0.00028219,5]
[381483797,1756230727370,-508.66,0.00028219,5]
[381483798,1756230727380,-531.34,0.00028219,5]
[381483799,1756230727390,-400.0,0.00028219,5]
[381483800,1756230727400,-696.35,0.00028219,5]
[381483801,1756230727411,-400.0,0.00028219,5]
[381483802,1756230727420,-801.56,0.00028219,5]
[381483803,1756230727431,-400.0,0.00028219,5]
[381483804,1756230727441,-400.0,0.00028219,5]
[381483805,1756230727451,-400.0,0.00028219,5]
[381483806,1756230727460,-400.0,0.00028219,5]
[381483807,1756230727470,-1420.8,0.00028219,5]
[381483808,1756230727480,-771.21,0.00028219,5]
[381483809,1756230727490,-489.59,0.00028219,5]
[381483810,1756230727500,-755.04,0.00028219,5]
[381483811,1756230727511,-400.0,0.00028219,5]
[381483812,1756230727520,-1769.58,0.00028219,5]
[381483813,1756230727529,-681.58,0.00028219,5]
[381483814,1756230727539,-400.0,0.00028219,5]
[381483815,1756230727549,-606.73,0.00028219,5]
[381483816,1756230727558,-821.91,0.00028219,5]
[381483817,1756230727568,-400.0,0.00028219,5]
[381483818,1756230727579,-837.01,0.00028219,5]
[381483819,1756230727589,-1166.43,0.00028219,5]
[381483820,1756230727598,-400.0,0.00028219,5]
[381483821,1756230727607,-400.0,0.00028219,5]
[381483822,1756230727617,-799.6,0.00028219,5]
[381483823,1756230727626,-400.0,0.00028219,5]
[381483824,1756230727636,-1010.62,0.00028219,5]
[381483825,1756230727646,-690.36,0.00028219,5]
[381483826,1756230727655,-400.0,0.00028219,5]
[381483827,1756230727669,-637.61,0.00028219,5]
[381483828,1756230727678,-1281.24,0.00028219,5]
[381483829,1756230727687,-278.49180394,0.00028219,5]
[381483830,1756230727697,-1590.4,0.00028219,5]
[381483831,1756230727706,-1064.68,0.00028219,5]
[381483832,1756230727716,-1271.37,0.00028219,5]
[381483833,1756230727726,-885.76,0.00028219,5]
[381483834,1756230727737,-491.41,0.00028219,5]
[381483835,1756230727747,-1493.75,0.00028219,5]
[381483836,1756230727756,-400.0,0.00028219,5]
[381483837,1756230727766,-1336.69,0.00028219,5]
[381483838,1756230727776,-967.08,0.00028219,5]
[381483839,1756230727786,-408.42,0.00028219,5]
[381483840,1756230727795,-418.99,0.00028219,5]
[381483841,1756230727805,-917.22,0.00028219,5]
[381483842,1756230727814,-400.0,0.00028219,5]
[381483843,1756230727824,-531.19,0.00028219,5]
[381483844,1756230727834,-1433.07,0.00028219,5]
[381483845,1756230727845,-400.0,0.00028219,5]
[381483846,1756230727854,-570.95,0.00028219,5]
[381483847,1756230727864,-400.0,0.00028219,5]
[381483848,1756230727874,-903.82,0.00028219,5]
[381483849,1756230727884,-1558.37,0.00028219,5]
[381483850,1756230727893,-400.0,0.00028219,5]
[381483851,1756230727903,-550.9,0.00028219,5]
[381483852,1756230727912,-400.0,0.00028219,5]
[381483853,1756230727922,-431.66,0.00028219,5]
[381483854,1756230727931,-664.06,0.00028219,5]
[381483855,1756230727941,-400.0,0.00028219,5]
[381483856,1756230727951,-558.64,0.00028219,5]
[381483857,1756230727961,-609.04,0.00028219,5]
[381483858,1756230727972,-774.95,0.00028219,5]
[381483859,1756230727983,-502.72,0.00028219,5]
[381483860,1756230727993,-400.0,0.00028219,5]
[381483861,1756230728003,-839.6,0.00028219,5]
[381483862,1756230728015,-697.46,0.00028219,5]
[381483863,1756230728027,-968.44,0.00028219,5]
[381483864,1756230728038,-1276.22,0.00028219,5]
[381483865,1756230728049,-1172.64,0.00028219,5]
[381483866,1756230728059,-1114.22,0.00028219,5]
[381483867,1756230728070,-688.1,0.00028219,5]
[381483868,1756230728080,-571.99,0.00028219,5]
[381483869,1756230728321,-400.0,0.00028219,5]
[381483870,1756230728340,-509.97,0.00028219,5]
[381483871,1756230728350,-400.0,0.00028219,5]
[381483872,1756230728359,-400.0,0.00028219,5]
[381483873,1756230728369,-580.72,0.00028219,5]
[381483874,1756230728379,-640.51,0.00028219,5]
[381483875,1756230728389,-403.41,0.00028219,5]
[381483876,1756230728398,-821.79,0.00028219,5]
[381483877,1756230728408,-400.0,0.00028219,5]
[381483878,1756230728417,-400.0,0.00028219,5]
[381483879,1756230728427,-1039.88,0.00028219,5]
[381483880,1756230728436,-839.24,0.00028219,5]
[381483881,1756230728446,-417.78,0.00028219,5]
[381483882,1756230728455,-837.82,0.00028219,5]
[381483883,1756230728464,-400.0,0.00028219,5]
[381483884,1756230728475,-400.0,0.00028219,5]
[381483885,1756230728485,-400.0,0.00028219,5]
[381483886,1756230728495,-400.0,0.00028219,5]
[381483887,1756230728505,-1270.77,0.00028219,5]
[381483888,1756230728515,-400.0,0.00028219,5]
[381483889,1756230728526,-400.0,0.00028219,5]
[381483890,1756230728536,-400.0,0.00028219,5]
[381483891,1756230728546,-895.98,0.00028219,5]
[381483892,1756230728556,-502.08,0.00028219,5]
[381483893,1756230728567,-598.04,0.00028219,5]
[381483894,1756230728576,-400.0,0.00028219,5]
[381483895,1756230728586,-865.23,0.00028219,5]
[381483896,1756230728596,-400.0,0.00028219,5]
[381483897,1756230728606,-518.54,0.00028219,5]
[381483898,1756230728618,-400.0,0.00028219,5]
[381483899,1756230728628,-522.21,0.00028219,5]
[381483900,1756230728638,-848.23,0.00028219,5]
[381483901,1756230728649,-422.68,0.00028219,5]
[381483902,1756230728658,-528.98,0.00028219,5]
[381483903,1756230728671,-963.39,0.00028219,5]
[381483904,1756230728681,-728.84,0.00028219,5]
[381483905,1756230728692,-400.0,0.00028219,5]
[381483906,1756230728703,-400.0,0.00028219,5]
[381483907,1756230728713,-400.0,0.00028219,5]
[381483908,1756230728723,-400.0,0.00028219,5]
[381483909,1756230728732,-618.88,0.00028219,5]
[381483910,1756230728743,-602.44392,0.00028219,5]
[381483911,1756230728753,-1044.55,0.00028219,5]
[381483912,1756230728762,-957.51,0.00028219,5]
[381483913,1756230728771,-461.75,0.00028219,5]
[381483914,1756230728781,-594.47,0.00028219,5]
[381483915,1756230728792,-1567.09,0.00028219,5]
[381483916,1756230728803,-503.53,0.00028219,5]
[381483917,1756230728814,-400.0,0.00028219,5]
[381483918,1756230728824,-400.0,0.00028219,5]
[381483919,1756230728836,-400.0,0.00028219,5]
[381483920,1756230728846,-1089.76,0.00028219,5]
[381483921,1756230728857,-524.36195527,0.00028219,5]
[381483922,1756230728868,-1276.92,0.00028219,5]
[381483923,1756230728878,-674.18,0.00028219,5]
[381483924,1756230728888,-1533.69,0.00028219,5]
[381483925,1756230728898,-817.0,0.00028219,5]
[381483926,1756230728909,-400.0,0.00028219,5]
[381483927,1756230728920,-400.0,0.00028219,5]
[381483928,1756230728930,-400.0,0.00028219,5]
[381483929,1756230728939,-676.42,0.00028219,5]
[381483930,1756230728949,-400.0,0.00028219,5]
[381483931,1756230728959,-400.0,0.00028219,5]
[381483932,1756230728968,-1531.09,0.00028219,5]
[381483933,1756230728977,-622.731684,0.00028219,5]
[381483934,1756230728987,-1459.11,0.00028219,5]
[381483935,1756230728997,-400.0,0.00028219,5]
[381483936,1756230729006,-558.77,0.00028219,5]
[381483937,1756230729016,-400.0,0.00028219,5]
[381483938,1756230729026,-627.47,0.00028219,5]
[381483939,1756230729035,-400.0,0.00028219,5]
[381483940,1756230729045,-579.77,0.00028219,5]
[381483941,1756230729055,-1440.73,0.00028219,5]
[381483942,1756230729064,-400.0,0.00028219,5]
[381483943,1756230729074,-1242.42,0.00028219,5]
[381483944,1756230729083,-400.0,0.00028219,5]
[381483945,1756230729094,-1425.56941,0.00028219,5]
[381483946,1756230729104,-1203.37,0.00028219,5]
[381483947,1756230729114,-746.88,0.00028219,5]
[381483948,1756230729125,-400.0,0.00028219,5]
[381483949,1756230729134,-400.0,0.00028219,5]
[381483950,1756230729144,-400.0,0.00028219,5]
[381483951,1756230729154,-1223.38,0.00028219,5]
[381483952,1756230729163,-1148.42,0.00028219,5]
[381483953,1756230729173,-400.0,0.00028219,5]
[381483954,1756230729183,-401.84759621,0.00028219,5]
[381483955,1756230729192,-1932.27,0.00028219,5]
[381483956,1756230729202,-771.37,0.00028219,5]
[381483957,1756230729211,-400.0,0.00028219,5]
[381483958,1756230729221,-400.0,0.00028219,5]
[381483959,1756230729230,-671.24,0.00028219,5]
[381483960,1756230729240,-545.72,0.00028219,5]
[381483961,1756230729250,-400.0,0.00028219,5]
[381483962,1756230729259,-669.66,0.00028219,5]
[381483963,1756230729269,-1913.94,0.00028219,5]
[381483964,1756230729278,-400.0,0.00028219,5]
[381483965,1756230729288,-947.84,0.00028219,5]
[381483966,1756230729297,-739.95,0.00028219,5]
[381483967,1756230729306,-400.0,0.00028219,5]
[381483968,1756230729315,-400.0,0.00028219,5]
[381483969,1756230729324,-400.0,0.00028219,5]
[381483970,1756230729334,-400.0,0.00028219,5]
[381483971,1756230729343,-400.0,0.00028219,5]
[381483972,1756230729353,-691.88,0.00028219,5]
[381483973,1756230729362,-400.0,0.00028219,5]
[381483974,1756230729371,-939.77,0.00028219,5]
[381483975,1756230729381,-616.51,0.00028219,5]
[381483976,1756230729391,-641.49,0.00028219,5]
[381483977,1756230729400,-400.0,0.00028219,5]
[381483978,1756230729410,-400.0,0.00028219,5]
[381483979,1756230729419,-1152.08,0.00028219,5]
[381483980,1756230729428,-400.0,0.00028219,5]
[381483981,1756230729438,-400.0,0.00028219,5]
[381483982,1756230729447,-638.75,0.00028219,5]
[381483983,1756230729457,-559.5,0.00028219,5]
[381483984,1756230729466,-421.67,0.00028219,5]
[381483985,1756230729475,-1044.69,0.00028219,5]
[381483986,1756230729485,-400.0,0.00028219,5]
[381483987,1756230729494,-400.0,0.00028219,5]
[381483988,1756230729504,-599.16,0.00028219,5]
[381483989,1756230729513,-605.74,0.00028219,5]
[381483990,1756230729522,-400.0,0.00028219,5]
[381483991,1756230729531,-400.0,0.00028219,5]
[381483992,1756230729541,-400.0,0.00028219,5]
[381483993,1756230729550,-838.66,0.00028219,5]
[381483994,1756230729560,-400.0,0.00028219,5]
[381483995,1756230729569,-400.0,0.00028219,5]
[381483996,1756230729579,-887.39,0.00028219,5]
[381483997,1756230729588,-655.13,0.00028219,5]
[381483998,1756230729597,-941.57,0.00028219,5]
[381483999,1756230729607,-471.57,0.00028219,5]
[381484000,1756230729616,-400.0,0.00028219,5]
[381484001,1756230729625,-499.66,0.00028219,5]
[381484002,1756230729635,-1079.39,0.00028219,5]
[381484003,1756230729647,-412.60294964,0.00028219,5]
[381484004,1756230729656,-890.980882,0.00028219,5]
[381484005,1756230729670,-400.0,0.00028219,5]
[381484006,1756230729681,-400.0,0.00028219,5]
[381484007,1756230729690,-400.0,0.00028219,5]
[381484008,1756230729699,-1594.17,0.00028219,5]
[381484009,1756230729710,-1159.56,0.00028219,5]
[381484010,1756230729719,-400.0,0.00028219,5]
[381484011,1756230729728,-892.37,0.00028219,5]
[381484012,1756230729741,-773.23,0.00028219,5]
[381484013,1756230729750,-1157.25,0.00028219,5]
[381484014,1756230729760,-400.0,0.00028219,5]
[381484015,1756230729770,-686.12,0.00028219,5]
[381484016,1756230729779,-1000.25,0.00028219,5]
[381484017,1756230729789,-1270.92,0.00028219,5]
[381484018,1756230729798,-400.0,0.00028219,5]
[381484019,1756230729807,-401.01303056,0.00028219,5]
[381484020,1756230729817,-438.05,0.00028219,5]
[381484021,1756230729827,-641.35,0.00028219,5]
[381484022,1756230729837,-1790.82,0.00028219,5]
[381484023,1756230729847,-547.19,0.00028219,5]
[381484024,1756230729856,-400.0,0.00028219,5]
[381484025,1756230729865,-1052.08,0.00028219,5]
[381484026,1756230729875,-400.0,0.00028219,5]
[381484027,1756230729884,-400.0,0.00028219,5]
[381484028,1756230729893,-400.0,0.00028219,5]
[381484029,1756230729902,-554.83,0.00028219,5]
[381484030,1756230729912,-1943.28,0.00028219,5]
[381484031,1756230729921,-746.03,0.00028219,5]
[381484032,1756230729930,-400.0,0.00028219,5]
[381484033,1756230729940,-496.1600738,0.00028219,5]
[381484034,1756230729949,-400.0,0.00028219,5]
[381484035,1756230729958,-518.13,0.00028219,5]
[381484036,1756230729967,-400.0,0.00028219,5]
[381484037,1756230729976,-785.98,0.00028219,5]
[381484038,1756230729987,-400.0,0.00028219,5]
[381484039,1756230729996,-993.89,0.00028219,5]
[381484040,1756230730006,-818.48,0.00028219,5]
[381484041,1756230730016,-400.0,0.00028219,5]
[381484042,1756230730025,-1104.44,0.00028219,5]
[381484043,1756230730034,-1314.35,0.00028219,5]
[381484044,1756230730043,-164.4870452,0.00028219,5]
[381484045,1756230730053,-1147.4,0.00028219,5]
[381484046,1756230730062,-400.0,0.00028219,5]
[381484047,1756230730072,-400.0,0.00028219,5]
[381484048,1756230730082,-400.0,0.00028219,5]
[381484049,1756230730093,-494.04,0.00028219,5]
[381484050,1756230730103,-762.17,0.00028219,5]
[381484051,1756230730112,-1207.12,0.00028219,5]
[381484052,1756230730121,-400.0,0.00028219,5]
[381484053,1756230730130,-803.64,0.00028219,5]
[381484054,1756230730140,-400.0,0.00028219,5]
[381484055,1756230730150,-479.74,0.00028219,5]
[381484056,1756230730163,-1365.31,0.00028219,5]
[381484057,1756230730173,-577.41,0.00028219,5]
[381484058,1756230730183,-796.06,0.00028219,5]
[381484059,1756230730193,-596.98,0.00028219,5]
[381484060,1756230730204,-649.76,0.00028219,5]
[381484061,1756230730216,-400.0,0.00028219,5]
[381484062,1756230730226,-865.97,0.00028219,5]
[381484063,1756230730236,-1461.95,0.00028219,5]
[381484064,1756230730246,-679.44,0.00028219,5]
[381484065,1756230730255,-1811.76,0.00028219,5]
[381484066,1756230730265,-400.0,0.00028219,5]
[381484067,1756230730275,-400.0,0.00028219,5]
[381484068,1756230730285,-1319.63,0.00028219,5]
[381484069,1756230730295,-400.0,0.00028219,5]
[381484070,1756230730304,-439.96,0.00028219,5]
[381484071,1756230730313,-400.0,0.00028219,5]
[381484072,1756230730322,-400.0,0.00028219,5]
[381484073,1756230730332,-1057.17,0.00028219,5]
[381484074,1756230730341,-400.0,0.00028219,5]
[381484075,1756230730350,-400.0,0.00028219,5]
[381484076,1756230730360,-400.0,0.00028219,5]
[381484077,1756230730369,-520.36767774,0.00028219,5]
[381484078,1756230730379,-736.79,0.00028219,5]
[381484079,1756230730389,-747.22,0.00028219,5]
[381484080,1756230730399,-1451.65,0.00028219,5]
[381484081,1756230730409,-1514.02,0.00028219,5]
[381484082,1756230730418,-1376.31,0.00028219,5]
[381484083,1756230730427,-449.86,0.00028219,5]
[381484084,1756230730436,-1074.86,0.00028219,5]
[381484085,1756230730446,-794.3,0.00028219,5]
[381484086,1756230730455,-769.79,0.00028219,5]
[381484087,1756230730465,-400.0,0.00028219,5]
[381484088,1756230730474,-1162.07,0.00028219,5]
[381484089,1756230730483,-934.37,0.00028219,5]
[381484090,1756230730493,-1986.93,0.00028219,5]
[381484091,1756230730502,-708.52,0.00028219,5]
[381484092,1756230730511,-1255.96,0.00028219,5]
[381484093,1756230730522,-1235.73,0.00028219,5]
[381484094,1756230730533,-1339.03,0.00028219,5]
[381484095,1756230730542,-400.0,0.00028219,5]
[381484096,1756230730554,-400.0,0.00028219,5]
[381484097,1756230730565,-826.32,0.00028219,5]
[381484098,1756230730575,-817.2,0.00028219,5]
[381484099,1756230730587,-1322.4,0.00028219,5]
[381484100,1756230730596,-621.44,0.00028219,5]
[381484101,1756230730605,-400.0,0.00028219,5]
[381484102,1756230730619,-1563.34,0.00028219,5]
[381484103,1756230730628,-1226.73,0.00028219,5]
[381484104,1756230730638,-567.37,0.00028219,5]
[381484105,1756230730648,-400.0,0.00028219,5]
[381484106,1756230730658,-469.42,0.00028219,5]
[381484107,1756230730671,-1033.23,0.00028219,5]
[381484108,1756230730681,-400.0,0.00028219,5]
[381484109,1756230730690,-514.59569206,0.00028219,5]
[381484110,1756230730700,-583.42,0.00028219,5]
[381484111,1756230730710,-400.0,0.00028219,5]
[381484112,1756230730720,-1617.06,0.00028219,5]
[381484113,1756230730729,-400.0,0.00028219,5]
[381484114,1756230730741,-496.78,0.00028219,5]
[381484115,1756230730751,-751.23,0.00028219,5]
[381484116,1756230730761,-740.82,0.00028219,5]
[381484117,1756230730770,-571.51,0.00028219,5]
[381484118,1756230730779,-1057.52,0.00028219,5]
[381484119,1756230730789,-400.0,0.00028219,5]
[381484120,1756230730799,-434.35,0.00028219,5]
[381484121,1756230730942,-400.0,0.00028219,5]
[381484122,1756230730952,-402.38126604,0.00028219,5]
[381484123,1756230730962,-752.52,0.00028219,5]
[381484124,1756230730972,-400.0,0.00028219,5]
[381484125,1756230730983,-1288.56,0.00028219,5]
[381484126,1756230730993,-400.0,0.00028219,5]
[381484127,1756230731007,-1749.23,0.00028219,5]
[381484128,1756230731017,-400.0,0.00028219,5]
[381484129,1756230731027,-1512.96,0.00028219,5]
[381484130,1756230731036,-400.0,0.00028219,5]
[381484131,1756230731046,-1076.61,0.00028219,5]
[381484132,1756230731055,-400.0,0.00028219,5]
[381484133,1756230731064,-4628.51,0.00028219,5]
[381484134,1756230731074,-400.0,0.00028219,5]
[381484135,1756230731083,-485.34,0.00028219,5]
[381484136,1756230731092,-546.54,0.00028219,5]
[381484137,1756230731101,-1309.38,0.00028219,5]
[381484138,1756230731113,-875.95,0.00028219,5]
[381484139,1756230731123,-431.25,0.00028219,5]
[381484140,1756230731132,-1567.59,0.00028219,5]
[381484141,1756230731142,-2458.03,0.00028219,5]
[381484142,1756230731154,-400.0,0.00028219,5]
[381484143,1756230731165,-1637.37,0.00028219,5]
[381484144,1756230731175,-875.76,0.00028219,5]
[381484145,1756230731186,-805.91,0.00028219,5]
[381484146,1756230731196,-1335.44,0.00028219,5]
[381484147,1756230731206,-813.45,0.00028219,5]
[381484148,1756230731217,-400.0,0.00028219,5]
[381484149,1756230731226,-400.0,0.00028219,5]
[381484150,1756230731236,-776.37,0.00028219,5]
[381484151,1756230731245,-440.79,0.00028219,5]
[381484152,1756230731255,-400.0,0.00028219,5]
[381484153,1756230731264,-1213.81,0.00028219,5]
[381484154,1756230731274,-937.37,0.00028219,5]
[381484155,1756230731285,-401.7943186,0.00028219,5]
[381484156,1756230731295,-686.49,0.00028219,5]
[381484157,1756230731304,-400.0,0.00028219,5]
[381484158,1756230731314,-713.94,0.00028219,5]
[381484159,1756230731324,-862.64,0.00028219,5]
[381484160,1756230731333,-922.13,0.00028219,5]
[381484161,1756230731342,-400.0,0.00028219,5]
[381484162,1756230731351,-842.8,0.00028219,5]
[381484163,1756230731361,-400.0,0.00028219,5]
[381484164,1756230731370,-1109.71,0.00028219,5]
[381484165,1756230731380,-402.56785175,0.00028219,5]
[381484166,1756230731390,-400.0,0.00028219,5]
[381484167,1756230731400,-400.0,0.00028219,5]
[381484168,1756230731411,-400.0,0.00028219,5]
[381484169,1756230731420,-400.0,0.00028219,5]
[381484170,1756230731430,-537.55,0.00028219,5]
[381484171,1756230731440,-400.0,0.00028219,5]
[381484172,1756230731449,-996.63,0.00028219,5]
[381484173,1756230731458,-1260.94,0.00028219,5]
[381484174,1756230731468,-400.0,0.00028219,5]
[381484175,1756230731477,-400.0,0.00028219,5]
[381484176,1756230731487,-400.0,0.00028219,5]
[381484177,1756230731497,-1760.66,0.00028219,5]
[381484178,1756230731506,-980.95,0.00028219,5]
[381484179,1756230731516,-410.02,0.00028219,5]
[381484180,1756230731525,-400.0,0.00028219,5]
[381484181,1756230731535,-400.0,0.00028219,5]
[381484182,1756230731544,-400.0,0.00028219,5]
[381484183,1756230731554,-400.0,0.00028219,5]
[381484184,1756230731563,-886.79,0.00028219,5]
[381484185,1756230731573,-400.0,0.00028219,5]
[381484186,1756230731584,-400.0,0.00028219,5]
[381484187,1756230731594,-1351.73,0.00028219,5]
[381484188,1756230731604,-400.0,0.00028219,5]
[381484189,1756230731615,-400.0,0.00028219,5]
[381484190,1756230731626,-400.0,0.00028219,5]
[381484191,1756230731637,-400.0,0.00028219,5]
[381484192,1756230731646,-457.01,0.00028219,5]
[381484193,1756230731655,-933.82,0.00028219,5]
[381484194,1756230731669,-400.0,0.00028219,5]
[381484195,1756230731678,-1161.18,0.00028219,5]
[381484196,1756230731687,-400.0,0.00028219,5]
[381484197,1756230731698,-255.78,0.00028219,5]
[381484198,1756230731709,-504.23,0.00028219,5]
[381484199,1756230731718,-1778.67,0.00028219,5]
[381484200,1756230731727,-763.04,0.00028219,5]
[381484201,1756230731738,-626.61,0.00028219,5]
[381484202,1756230731747,-1427.19,0.00028219,5]
[381484203,1756230731756,-400.0,0.00028219,5]
[381484204,1756230731765,-595.35,0.00028219,5]
[381484205,1756230731775,-400.0,0.00028219,5]
[381484206,1756230731785,-1212.24,0.00028219,5]
[381484207,1756230731794,-659.0,0.00028219,5]